fUST/lending_fUST_20240324
["ID","MTS","AMOUNT","RATE_DAILY","PERIOD"]
[320322704,1711290564825,-500.0,0.00030411,2]
[320322705,1711290564847,-1030.58,0.00030411,2]
[320322706,1711290564870,-500.0,0.00030411,2]
[320322707,1711290564893,-663.99,0.00030411,2]
[320322708,1711290564915,-500.0,0.00030411,2]
[320322709,1711290564937,-500.0,0.00030411,2]
[320322710,1711290564958,-500.0,0.00030411,2]
[320322711,1711290564980,-2915.88,0.00030411,2]
[320322712,1711290565002,-842.52,0.00030411,2]
[320322713,1711290565023,-500.0,0.00030411,2]
[320322714,1711290565046,-659.92,0.00030411,2]
[320322715,1711290565068,-500.0,0.00030411,2]
[320322716,1711290565090,-3970.08,0.00030411,2]
[320322717,1711290565112,-460.18,0.00030411,2]
[320322718,1711290565133,-500.0,0.00030412,2]
[320322719,1711290565157,-500.0,0.00030412,2]
[320322720,1711290565179,-228.28974968,0.00030412,2]
[320322721,1711290565200,-500.0,0.00030412,2]
[320322722,1711290565220,-500.0,0.00030412,2]
[320322723,1711290565243,-500.0,0.00030412,2]
[320322724,1711290565264,-500.0,0.00030412,2]
[320322725,1711290565285,-500.0,0.00030412,2]
[320322726,1711290565306,-500.0,0.00030412,2]
[320322727,1711290565327,-500.0,0.00030412,2]
[320322728,1711290565349,-500.0,0.00030412,2]
[320322729,1711290565372,-500.0,0.00030412,2]
[320322730,1711290565395,-500.0,0.00030412,2]
[320322731,1711290565416,-500.0,0.00030412,2]
[320322732,1711290565437,-500.0,0.00030412,2]
[320322733,1711290565457,-500.0,0.00030412,2]
[320322734,1711290565478,-500.0,0.00030412,2]
[320322735,1711290565500,-540.48,0.00030412,2]
[320322736,1711290565523,-500.0,0.00030412,2]
[320322737,1711290565547,-1000.0,0.00030412,120]
[320322738,1711290565571,-500.0,0.00030413,2]
[320322739,1711290565593,-341.64,0.00030413,2]
[320322740,1711290565617,-436.9,0.00030413,2]
[320322741,1711290565638,-500.0,0.00030684,2]
[320322742,1711290565659,-553.89,0.00030684,2]
[320322743,1711290565683,-2891.31,0.00030684,2]
[320322744,1711290565704,-500.0,0.00030684,2]
[320322745,1711290565725,-500.0,0.00030684,2]
[320322746,1711290565747,-500.0,0.00030684,2]
[320322747,1711290565771,-727.56,0.00030684,2]
[320322748,1711290565793,-500.0,0.00030684,2]
[320322749,1711290565814,-500.0,0.00030684,2]
[320322750,1711290565836,-500.0,0.00030685,2]
[320322751,1711290565859,-500.0,0.00030685,2]
[320322752,1711290565881,-500.0,0.00030685,2]
[320322753,1711290565906,-500.0,0.00030685,2]
[320322754,1711290565927,-500.0,0.00030685,2]
[320322755,1711290565948,-1030.58,0.00030685,2]
[320322756,1711290565969,-500.0,0.00030685,2]
[320322757,1711290565991,-500.0,0.00030685,2]
[320322758,1711290566013,-500.0,0.00030685,2]
[320322759,1711290566035,-500.0,0.00030685,2]
[320322760,1711290566057,-2915.88,0.00030685,2]
[320322761,1711290566079,-842.52,0.00030685,2]
[320322762,1711290566100,-500.0,0.00030685,2]
[320322763,1711290566126,-659.92,0.00030685,2]
[320322764,1711290566150,-500.0,0.00030685,2]
[320322765,1711290566173,-3970.08,0.00030685,2]
[320322766,1711290566193,-500.0,0.00030686,2]
[320322767,1711290566216,-500.0,0.00030686,2]
[320322768,1711290566238,-500.0,0.00030686,2]
[320322769,1711290566263,-500.0,0.00030686,2]
[320322770,1711290566284,-500.0,0.00030686,2]
[320322771,1711290566306,-551.95,0.00030686,2]
[320322772,1711290566328,-500.0,0.00030686,2]
[320322773,1711290566350,-1000.0,0.00030686,120]
[320322774,1711290566374,-500.0,0.00030687,2]
[320322775,1711290566395,-500.0,0.00030958,2]
[320322776,1711290566416,-553.89,0.00030958,2]
[320322777,1711290566438,-2891.31,0.00030958,2]
[320322778,1711290566460,-500.0,0.00030958,2]
[320322779,1711290566485,-500.0,0.00030958,2]
[320322780,1711290566506,-500.0,0.00030958,2]
[320322781,1711290566527,-727.56,0.00030958,2]
[320322782,1711290566550,-353.0,0.00030958,2]
[320322783,1711290566573,-500.0,0.00030958,2]
[320322784,1711290566594,-500.0,0.00030959,2]
[320322785,1711290566705,-500.0,0.00030959,2]
[320322786,1711290566728,-433.36,0.00030959,2]
[320322787,1711290566749,-500.0,0.00030959,2]
[320322788,1711290566772,-500.0,0.00030959,2]
[320322789,1711290566792,-1030.58,0.00030959,2]
[320322790,1711290566815,-500.0,0.00030959,2]
[320322791,1711290566837,-500.0,0.00030959,2]
[320322792,1711290566859,-500.0,0.00030959,2]
[320322793,1711290566880,-500.0,0.00030959,2]
[320322794,1711290566902,-2915.88,0.00030959,2]
[320322795,1711290566923,-842.52,0.00030959,2]
[320322796,1711290566962,-500.0,0.00030959,2]
[320322797,1711290566990,-659.92,0.00030959,2]
[320322798,1711290567013,-500.0,0.00030959,2]
[320322799,1711290567037,-3970.08,0.00030959,2]
[320322800,1711290567061,-500.0,0.0003096,2]
[320322801,1711290567084,-219.75,0.0003096,2]
[320322802,1711290567109,-500.0,0.0003096,2]
[320322803,1711290567132,-500.0,0.0003096,2]
[320322804,1711290567156,-500.0,0.0003096,2]
[320322805,1711290567179,-197.43,0.0003096,2]
[320322806,1711290567202,-1000.0,0.0003096,120]
[320322807,1711290567224,-500.0,0.00030961,2]
[320322808,1711290567246,-500.0,0.00031232,2]
[320322809,1711290567267,-553.89,0.00031232,2]
[320322810,1711290567289,-2175.86437036,0.00031232,2]
[320322811,1711290567477,-342.2152811,0.00029214,2]
[320322812,1711290567499,-715.44562964,0.00031232,2]
[320322813,1711290567520,-500.0,0.00031232,2]
[320322814,1711290567539,-500.0,0.00031232,2]
[320322815,1711290567560,-500.0,0.00031232,2]
[320322816,1711290567580,-727.56,0.00031232,2]
[320322817,1711290567600,-500.0,0.00031232,2]
[320322818,1711290567621,-500.0,0.00031233,2]
[320322819,1711290567641,-602.68,0.00031233,2]
[320322820,1711290567661,-500.0,0.00031233,2]
[320322821,1711290567681,-500.0,0.00031233,2]
[320322822,1711290567701,-1030.58,0.00031233,2]
[320322823,1711290567720,-500.0,0.00031233,2]
[320322824,1711290567741,-500.0,0.00031233,2]
[320322825,1711290567773,-500.0,0.00031233,2]
[320322826,1711290567803,-500.0,0.00031233,2]
[320322827,1711290567828,-2915.88,0.00031233,2]
[320322828,1711290567859,-842.52,0.00031233,2]
[320322829,1711290567885,-500.0,0.00031233,2]
[320322830,1711290567912,-659.92,0.00031233,2]
[320322831,1711290567939,-500.0,0.00031233,2]
[320322832,1711290567962,-3970.08,0.00031233,2]
[320322833,1711290567988,-500.0,0.00031234,2]
[320322834,1711290568013,-182.4,0.00031234,2]
[320322835,1711290568039,-265.25,0.00031234,2]
[320322836,1711290568066,-1000.0,0.00031234,120]
[320322837,1711290568091,-500.0,0.00031235,2]
[320322838,1711290568121,-201.9092036,0.00031236,2]
[320322839,1711290568149,-175.88,0.00031506,2]
[320322840,1711290568174,-553.89,0.00031506,2]
[320322841,1711290568201,-2891.31,0.00031506,2]
[320322842,1711290568230,-500.0,0.00031506,2]
[320322843,1711290568257,-500.0,0.00031506,2]
[320322844,1711290568285,-500.0,0.00031506,2]
[320322845,1711290568312,-727.56,0.00031506,2]
[320322846,1711290568336,-486.47,0.00031506,2]
[320322847,1711290568358,-500.0,0.00031507,2]
[320322848,1711290568382,-500.0,0.00031507,2]
[320322849,1711290568407,-500.0,0.00031507,2]
[320322850,1711290568431,-1030.58,0.00031507,2]
[320322851,1711290568454,-500.0,0.00031507,2]
[320322852,1711290568476,-500.0,0.00031507,2]
[320322853,1711290568501,-500.0,0.00031507,2]
[320322854,1711290568524,-500.0,0.00031507,2]
[320322855,1711290568548,-2915.88,0.00031507,2]
[320322856,1711290568573,-842.52,0.00031507,2]
[320322857,1711290568596,-500.0,0.00031507,2]
[320322858,1711290568621,-659.92,0.00031507,2]
[320322859,1711290568646,-500.0,0.00031507,2]
[320322860,1711290568670,-3970.08,0.00031507,2]
[320322861,1711290568693,-552.6,0.00031508,2]
[320322862,1711290568716,-427.31608337,0.00031508,120]
[320322863,1711290568736,-500.0,0.00031509,2]
[320322864,1711290568757,-553.89,0.0003178,2]
[320322865,1711290568778,-2891.31,0.0003178,2]
[320322866,1711290568799,-633.79,0.0003178,2]
[320322867,1711290568820,-500.0,0.0003178,2]
[320322868,1711290568841,-500.0,0.0003178,2]
[320322869,1711290568866,-727.56,0.0003178,2]
[320322870,1711290568887,-500.0,0.00031781,2]
[320322871,1711290568907,-500.0,0.00031781,2]
[320322872,1711290568927,-500.0,0.00031781,2]
[320322873,1711290569081,-1030.58,0.00031781,2]
[320322874,1711290569106,-500.0,0.00031781,2]
[320322875,1711290569141,-500.0,0.00031781,2]
[320322876,1711290569164,-500.0,0.00031781,2]
[320322877,1711290569184,-500.0,0.00031781,2]
[320322878,1711290569204,-2915.88,0.00031781,2]
[320322879,1711290569225,-842.52,0.00031781,2]
[320322880,1711290569247,-161.92,0.00031781,2]
[320322881,1711290569267,-659.92,0.00031781,2]
[320322882,1711290569287,-500.0,0.00031781,2]
[320322883,1711290569307,-3970.08,0.00031781,2]
[320322884,1711290569327,-475.99,0.00031783,2]
[320322885,1711290569347,-553.89,0.00032054,2]
[320322886,1711290569368,-2891.31,0.00032054,2]
[320322887,1711290569388,-500.0,0.00032054,2]
[320322888,1711290569409,-500.0,0.00032054,2]
[320322889,1711290569430,-727.56,0.00032054,2]
[320322890,1711290569450,-263.48,0.00032055,2]
[320322891,1711290569470,-500.0,0.00032055,2]
[320322892,1711290569490,-500.0,0.00032055,2]
[320322893,1711290569510,-1030.58,0.00032055,2]
[320322894,1711290569530,-500.0,0.00032055,2]
[320322895,1711290569549,-500.0,0.00032055,2]
[320322896,1711290569570,-500.0,0.00032055,2]
[320322897,1711290569591,-500.0,0.00032055,2]
[320322898,1711290569613,-1545.73025229,0.00032055,2]
[320322899,1711290569727,-1451.18516369,0.0002579,2]
[320322900,1711290569747,-342.2152811,0.00029489,2]
[320322901,1711290569767,-1370.14974771,0.00032055,2]
[320322902,1711290569787,-842.52,0.00032055,2]
[320322903,1711290569806,-659.92,0.00032055,2]
[320322904,1711290569826,-500.0,0.00032055,2]
[320322905,1711290569846,-3970.08,0.00032055,2]
[320322906,1711290569867,-553.89,0.00032328,2]
[320322907,1711290569886,-2891.31,0.00032328,2]
[320322908,1711290569905,-500.0,0.00032328,2]
[320322909,1711290569925,-325.05,0.00032328,2]
[320322910,1711290569944,-727.56,0.00032328,2]
[320322911,1711290569966,-500.0,0.00032329,2]
[320322912,1711290569985,-500.0,0.00032329,2]
[320322913,1711290570004,-500.0,0.00032329,2]
[320322914,1711290570025,-500.0,0.00032329,2]
[320322915,1711290570044,-500.0,0.00032329,2]
[320322916,1711290570065,-500.0,0.00032329,2]
[320322917,1711290570089,-2915.88,0.00032329,2]
[320322918,1711290570111,-842.52,0.00032329,2]
[320322919,1711290570131,-659.92,0.00032329,2]
[320322921,1711290570152,-291.08,0.00032329,2]
[320322922,1711290570171,-3970.08,0.00032329,2]
[320322923,1711290570190,-553.89,0.00032602,2]
[320322924,1711290570210,-2891.31,0.00032602,2]
[320322925,1711290570229,-500.0,0.00032602,2]
[320322926,1711290570248,-727.56,0.00032602,2]
[320322927,1711290570268,-638.7,0.00032603,2]
[320322928,1711290570287,-500.0,0.00032603,2]
[320322929,1711290570306,-500.0,0.00032603,2]
[320322930,1711290570325,-604.82338555,0.00032603,2]
[320322931,1711290570344,-500.0,0.00032603,2]
[320322932,1711290570366,-500.0,0.00032603,2]
[320322933,1711290570386,-2915.88,0.00032603,2]
[320322934,1711290570407,-842.52,0.00032603,2]
[320322935,1711290570427,-659.92,0.00032603,2]
[320322936,1711290570448,-3970.08,0.00032603,2]
[320322937,1711290570468,-553.89,0.00032876,2]
[320322938,1711290570489,-2891.31,0.00032876,2]
[320322939,1711290570509,-500.0,0.00032876,2]
[320322940,1711290570529,-727.56,0.00032876,2]
[320322941,1711290570550,-500.0,0.00032877,2]
[320322942,1711290570571,-500.0,0.00032877,2]
[320322943,1711290570591,-500.0,0.00032877,2]
[320322944,1711290570611,-500.0,0.00032877,2]
[320322945,1711290570631,-2915.88,0.00032877,2]
[320322946,1711290570653,-842.52,0.00032877,2]
[320322947,1711290570674,-659.92,0.00032877,2]
[320322948,1711290570694,-3970.08,0.00032877,2]
[320322949,1711290570714,-274.0,0.00033,2]
[320322950,1711290570735,-274.0,0.00033,2]
[320322951,1711290570755,-553.89,0.0003315,2]
[320322952,1711290570775,-2891.31,0.0003315,2]
[320322953,1711290570795,-500.0,0.0003315,2]
[320322954,1711290570817,-727.56,0.0003315,2]
[320322955,1711290570837,-500.0,0.00033151,2]
[320322956,1711290570857,-500.0,0.00033151,2]
[320322957,1711290570877,-500.0,0.00033151,2]
[320322958,1711290570896,-500.0,0.00033151,2]
[320322959,1711290570917,-2915.88,0.00033151,2]
[320322960,1711290570936,-842.52,0.00033151,2]
[320322961,1711290570958,-659.92,0.00033151,2]
[320322962,1711290570977,-3970.08,0.00033151,2]
[320322963,1711290570997,-553.89,0.00033424,2]
[320322964,1711290571017,-2891.31,0.00033424,2]
[320322965,1711290571037,-500.0,0.00033424,2]
[320322966,1711290571057,-727.56,0.00033424,2]
[320322967,1711290571080,-500.0,0.00033425,2]
[320322968,1711290571099,-500.0,0.00033425,2]
[320322969,1711290571120,-583.08,0.00033425,2]
[320322970,1711290571140,-500.0,0.00033425,2]
[320322971,1711290571162,-2915.88,0.00033425,2]
[320322972,1711290571182,-842.52,0.00033425,2]
[320322973,1711290571202,-659.92,0.00033425,2]
[320322974,1711290571222,-3970.08,0.00033425,2]
[320322975,1711290571241,-553.89,0.00033698,2]
[320322976,1711290571261,-2891.31,0.00033698,2]
[320322977,1711290571279,-500.0,0.00033698,2]
[320322978,1711290571298,-727.56,0.00033698,2]
[320322979,1711290571318,-500.0,0.00033699,2]
[320322980,1711290571337,-500.0,0.00033699,2]
[320322981,1711290571357,-500.0,0.00033699,2]
[320322982,1711290571379,-2915.88,0.00033699,2]
[320322983,1711290571399,-842.52,0.00033699,2]
[320322984,1711290571419,-659.92,0.00033699,2]
[320322985,1711290571439,-3970.08,0.00033699,2]
[320322986,1711290571459,-553.89,0.00033972,2]
[320322987,1711290571480,-2891.31,0.00033972,2]
[320322988,1711290571499,-500.0,0.00033972,2]
[320322989,1711290571519,-727.56,0.00033972,2]
[320322990,1711290571541,-500.0,0.00033973,2]
[320322991,1711290571561,-500.0,0.00033973,2]
[320322992,1711290571583,-514.34,0.00033973,2]
[320322993,1711290571603,-2915.88,0.00033973,2]
[320322994,1711290571624,-842.52,0.00033973,2]
[320322995,1711290571647,-659.92,0.00033973,2]
[320322996,1711290571667,-3970.08,0.00033973,2]
[320322997,1711290571685,-865.17829228,0.00034,4]
[320322998,1711290571705,-1952.54871349,0.00034147,2]
[320322999,1711290571724,-553.89,0.00034246,2]
[320323000,1711290571744,-2891.31,0.00034246,2]
[320323001,1711290571764,-500.0,0.00034246,2]
[320323002,1711290571784,-727.56,0.00034246,2]
[320323003,1711290571804,-500.0,0.00034247,2]
[320323004,1711290571823,-313.81,0.00034247,2]
[320323005,1711290571842,-1368.83001618,0.00034247,2]
[320323006,1711290571884,-1067.17784071,0.00029589,2]
[320323007,1711290571902,-862.73481056,0.00029863,2]
[320323008,1711290571921,-558.9497818,0.00029863,2]
[320323009,1711290571942,-1547.04998382,0.00034247,2]
[320323010,1711290572052,-842.52,0.00034247,2]
[320323011,1711290572075,-659.92,0.00034247,2]
[320323012,1711290572096,-3970.08,0.00034247,2]
[320323013,1711290572120,-553.89,0.0003452,2]
[320323014,1711290572140,-2891.31,0.0003452,2]
[320323015,1711290572161,-500.0,0.0003452,2]
[320323016,1711290572181,-727.56,0.0003452,2]
[320323017,1711290572202,-500.0,0.00034521,2]
[320323018,1711290572222,-2915.88,0.00034521,2]
[320323019,1711290572242,-842.52,0.00034521,2]
[320323020,1711290572261,-659.92,0.00034521,2]
[320323021,1711290572282,-3970.08,0.00034521,2]
[320323022,1711290572303,-553.89,0.00034794,2]
[320323023,1711290572325,-2891.31,0.00034794,2]
[320323024,1711290572347,-500.0,0.00034794,2]
[320323025,1711290572369,-727.56,0.00034794,2]
[320323026,1711290572388,-450.4,0.00034795,2]
[320323027,1711290572408,-2915.88,0.00034795,2]
[320323028,1711290572427,-842.52,0.00034795,2]
[320323029,1711290572448,-659.92,0.00034795,2]
[320323030,1711290572467,-3970.08,0.00034795,2]
[320323031,1711290572487,-30974.78980068,0.00035,30]
[320323032,1711290572506,-154.8915759,0.00035,4]
[320323033,1711290572525,-593.28409045,0.00035,2]
[320323034,1711290572546,-500.75317266,0.00035,2]
[320323035,1711290572568,-553.89,0.00035068,2]
[320323036,1711290572589,-2891.31,0.00035068,2]
[320323037,1711290572609,-601.65,0.00035068,2]
[320323038,1711290572630,-727.56,0.00035068,2]
[320323039,1711290572649,-2915.88,0.00035069,2]
[320323040,1711290572669,-842.52,0.00035069,2]
[320323041,1711290572690,-659.92,0.00035069,2]
[320323042,1711290572711,-3970.08,0.00035069,2]
[320323043,1711290572731,-554.02,0.00035342,2]
[320323044,1711290572753,-2891.35421755,0.00035342,2]
[320323045,1711290572774,-727.58,0.00035342,2]
[320323046,1711290572794,-2915.94,0.00035343,2]
[320323047,1711290572814,-842.72,0.00035343,2]
[320323048,1711290572833,-659.95,0.00035343,2]
[320323049,1711290572854,-3970.25022473,0.00035343,2]
[320323050,1711290572875,-182.927011,0.00035616,120]
[320323051,1711290572894,-274.0,0.00036,2]
[320323052,1711290572913,-274.0,0.00036,2]
[320323053,1711290572932,-274.0,0.00036,2]
[320323054,1711290572951,-600.0,0.000368,30]
[320323055,1711290572970,-1200.0,0.000368,30]
[320323056,1711290573028,883.7378449,0.00029588,2]
[320323057,1711290573055,1246.50763312,0.00029863,2]
[320323058,1711290573108,1091.57745706,0.00029588,2]
[320323059,1711290573137,608.84173967,0.00029588,2]
[320323060,1711290573165,500.0,0.0002959,2]
[320323061,1711290573188,199.9143854,0.00029588,2]
[320323062,1711290573213,4982.91841999,0.00035,3]
[320323114,1711290632653,-155.08851623,0.0002579,2]
[320323115,1711290632663,-420.46553613,0.0002579,2]
[320323116,1711290632673,-5666.84528087,0.0002579,2]
[320323118,1711290632682,-500.0,0.00029041,2]
[320323120,1711290632691,-500.0,0.00029041,2]
[320323121,1711290632700,-500.0,0.00029041,2]
[320323123,1711290632710,-500.0,0.00029041,2]
[320323124,1711290632718,-500.0,0.00029315,2]
[320323125,1711290632727,-173.58931251,0.00029315,2]
[320323127,1711290632736,-2000.0,0.0002949,2]
[320323128,1711290632746,-1619.429426,0.00029587,2]
[320323129,1711290632755,-176.25306437,0.00029587,2]
[320323130,1711290632764,-235.73410761,0.00029588,2]
[320323131,1711290632773,-247.86796142,0.00030411,4]
[320323132,1711290632787,-760.80763454,0.00030411,4]
[320323133,1711290632796,-924.23307303,0.00030411,4]
[320323134,1711290632805,-359.33762987,0.00034519,4]
[320323135,1711290632814,-288.97103278,0.00034825,2]
[320323136,1711290632823,-3849.58811175,0.00035,3]
[320323674,1711290641786,-657.26,0.00035,3]
[320323726,1711290643823,-1034.128,0.00035,3]
[320323737,1711290643927,-0.0931889,0.00035,3]
[320324008,1711290646907,-500.0,0.00029041,2]
[320324010,1711290646917,-500.0,0.00029315,2]
[320324012,1711290646927,-500.0,0.00029589,2]
[320324014,1711290646937,-500.0,0.00029863,2]
[320324016,1711290646946,-3733.66000833,0.00035,3]
[320324018,1711290646955,-162.096103,0.0003887,2]
[320324034,1711290647087,-155.16096601,0.0004,2]
[320324036,1711290647103,-154.8915759,0.00042476,2]
[320324038,1711290647117,-150.87929656,0.00042477,2]
[320324040,1711290647127,-301.75859313,0.00043191,4]
[320324042,1711290647136,-5000.0,0.00044,5]
[320324045,1711290647147,-182.927011,0.00044521,120]
[320324047,1711290647156,-1257.00228218,0.000488,90]
[320324049,1711290647166,-231.76,0.0005,120]
[320324050,1711290647176,-182.927011,0.00053425,120]
[320324053,1711290647185,-1157.00228218,0.0005388,90]
[320324054,1711290647195,-276.0,0.00054794,2]
[320324056,1711290647205,-2300.0,0.00054794,120]
[320324059,1711290647215,-2300.0,0.00054794,120]
[320324061,1711290647225,-2300.0,0.00054794,120]
[320324063,1711290647234,-2082.0,0.00054794,120]
[320324065,1711290647244,-1800.0,0.00056,90]
[320324067,1711290647252,-2004.64229168,0.0006,120]
[320324069,1711290647262,-1642.99771782,0.00063,90]
[320324072,1711290647271,-176.3661763,0.00065094,12]
[320324074,1711290647281,-151.9588378,0.00065095,120]
[320324077,1711290647291,-1842.99771782,0.0006518,90]
[320324080,1711290647302,-500.0,0.00065753,2]
[320324082,1711290647312,-865.17829228,0.00068491,7]
[320324084,1711290647322,-191.45320016,0.00068491,7]
[320324087,1711290647332,-408.97264388,0.00068491,7]
[320324089,1711290647342,-762.79383058,0.00068491,4]
[320324090,1711290647352,-267.54089763,0.00068492,7]
[320324092,1711290647362,-276.0,0.00068493,2]
[320324094,1711290647373,-1000.0,0.00068493,120]
[320324096,1711290647382,-1000.0,0.00068493,120]
[320324099,1711290647393,-1000.0,0.00068493,120]
[320324101,1711290647403,-1000.0,0.00068493,120]
[320324103,1711290647414,-1000.0,0.00068493,120]
[320324105,1711290647424,-1000.0,0.00068493,120]
[320324107,1711290647435,-1000.0,0.00068493,120]
[320324109,1711290647444,-1000.0,0.00068493,120]
[320324110,1711290647453,-1000.0,0.00068493,120]
[320324112,1711290647464,-1000.0,0.00068493,120]
[320324115,1711290647473,-1000.0,0.00068493,120]
[320324116,1711290647483,-1000.0,0.00068493,120]
[320324118,1711290647494,-1000.0,0.00068493,120]
[320324121,1711290647504,-1000.0,0.00068493,120]
[320324123,1711290647515,-1000.0,0.00068493,120]
[320324125,1711290647525,-1000.0,0.00068493,120]
[320324127,1711290647535,-1000.0,0.00068493,120]
[320324128,1711290647545,-1000.0,0.00068493,120]
[320324130,1711290647556,-1000.0,0.00068493,120]
[320324132,1711290647566,-999.78,0.00068493,120]
[320324134,1711290647577,-190.87991699,0.00068899,120]
[320324136,1711290647587,-156.35136778,0.00068899,120]
[320324138,1711290647597,-500.0,0.00068899,120]
[320324140,1711290647608,-500.0,0.00068899,120]
[320324142,1711290647619,-500.0,0.00068899,120]
[320324145,1711290647629,-500.0,0.00068899,120]
[320324147,1711290647639,-190.98250657,0.00068899,120]
[320324148,1711290647649,-500.0,0.00068899,120]
[320324151,1711290647659,-400.0,0.000689,40]
[320324153,1711290647669,-400.0,0.000689,40]
[320324154,1711290647681,-400.0,0.000689,40]
[320324156,1711290647691,-800.0,0.000689,40]
[320324158,1711290647701,-804.0,0.000689,40]
[320324160,1711290647711,-10758.79992797,0.00069,2]
[320324162,1711290647723,-276.0,0.00071493,2]
[320324165,1711290647734,-5000.0,0.00074,30]
[320324167,1711290647746,-236.07,0.0007468,120]
[320324169,1711290647756,-1200.0,0.00076,90]
[320324171,1711290647766,-500.0,0.000789,120]
[320324173,1711290647776,-154.92253873,0.00082318,7]
[320324175,1711290647786,-1357.00228217,0.000828,110]
[320324177,1711290647796,-937.03918692,0.00083998,7]
[320324179,1711290647806,-322.45069746,0.00083998,7]
[320324181,1711290647815,-523.28309686,0.00083998,7]
[320324183,1711290647825,-205.23034575,0.00083998,7]
[320324185,1711290647835,-155.08340366,0.00083998,7]
[320324187,1711290647844,-160.75398886,0.00083998,7]
[320324189,1711290647854,-611.24805464,0.00083998,7]
[320324191,1711290647863,-155.2573779,0.00083998,7]
[320324193,1711290647872,-303.05457139,0.00083998,7]
[320324195,1711290647882,-215.12494939,0.00083998,7]
[320324197,1711290647891,-852.57413401,0.00083998,120]
[320324199,1711290647901,-10000.0,0.00084,120]
[320324201,1711290647911,-160.0,0.00086792,5]
[320324203,1711290647921,-314.93472992,0.00086894,7]
[320324205,1711290647932,-381.8787319,0.00086894,7]
[320324207,1711290647941,-2531.4727485,0.00086894,7]
[320324209,1711290647952,-3161.87287747,0.00086894,7]
[320324211,1711290647962,-316.99666353,0.00086894,7]
[320324212,1711290647972,-435.18188624,0.00086894,2]
[320324214,1711290647982,-158.44777875,0.00086894,7]
[320324216,1711290647992,-154.95050007,0.00086894,7]
[320324218,1711290648002,-156.24249828,0.00086894,7]
[320324220,1711290648011,-270.16270806,0.00086894,7]
[320324222,1711290648022,-779.14717411,0.00086894,7]
[320324224,1711290648031,-189.38278239,0.00086894,7]
[320324226,1711290648041,-289.79114307,0.00086894,7]
[320324228,1711290648050,-309.70578029,0.00086894,7]
[320324230,1711290648060,-166.24095408,0.00086894,7]
[320324232,1711290648070,-918.76381675,0.00086894,7]
[320324234,1711290648079,-296.76469055,0.00086895,2]
[320324236,1711290648089,-187.7475863,0.00086895,2]
[320324237,1711290648101,-291.283474,0.00086895,7]
[320324240,1711290648114,-3481.86884503,0.00086895,7]
[320324242,1711290648125,-405.00494432,0.00086895,7]
[320324244,1711290648136,-210.87976388,0.00086895,7]
[320324245,1711290648146,-155.94470797,0.00086895,7]
[320324248,1711290648156,-1533.97274494,0.00086896,7]
[320324249,1711290648166,-5100.11872369,0.00086896,7]
[320324252,1711290648178,-599.28272706,0.00086898,30]
[320324254,1711290648188,-257.8557046,0.00086899,30]
[320324255,1711290648198,-211.44418848,0.00086899,120]
[320324257,1711290648207,-213.40657122,0.00086899,120]
[320324259,1711290648218,-191.90926369,0.00086899,30]
[320324261,1711290648229,-333008.84355234,0.000869,120]
[320324264,1711290648240,-2633.667466,0.000869,120]